fUSD/lending_fUSD_20251113
["ID","MTS","AMOUNT","RATE_DAILY","PERIOD"]
[393877490,1763062414142,500.0,0.00016999,2]
[393877491,1763062414373,500.0,0.00016999,2]
[393877492,1763062414618,500.0,0.00016999,2]
[393877493,1763062414847,500.0,0.00016999,2]
[393877494,1763062415248,-225.89292966,0.00016999,2]
[393877495,1763062415274,-31.52405915,0.00016999,2]
[393877496,1763062432642,500.0,0.00016999,2]
[393877497,1763062432898,561.46292857,0.00016999,2]
[393877499,1763062500340,150.0,0.00016786,2]
[393877501,1763062525528,2050.61,0.00016438,2]
[393877502,1763062531296,303.0,0.00041003,30]
[393877507,1763062567905,381.36604537,0.00016999,2]
[393877509,1763062583504,180.56,0.0001676,2]
[393877510,1763062584180,180.56,0.0002514,120]
[393877581,1763062620889,500.0,0.00016999,2]
[393877582,1763062621138,421.960617,0.00016999,2]
[393877583,1763062628090,151.0,0.00016999,2]
[393877584,1763062628380,151.0,0.00016999,2]
[393877585,1763062628687,151.0,0.00016999,2]
[393877586,1763062629499,151.0,0.00016999,2]
[393877587,1763062629563,151.0,0.00016999,2]
[393877588,1763062629711,151.0,0.00016999,2]
[393877589,1763062629984,151.0,0.00016999,2]
[393877590,1763062630349,151.0,0.00016999,2]
[393877591,1763062630657,151.0,0.00016999,2]
[393877592,1763062630976,151.0,0.00016999,2]
[393877593,1763062631288,151.0,0.00016999,2]
[393877594,1763062631607,151.0,0.00016999,2]
[393877595,1763062631903,151.0,0.00016999,2]
[393877596,1763062632251,151.0,0.00016999,2]
[393877597,1763062632531,151.0,0.00016999,2]
[393877598,1763062632920,151.0,0.00016999,2]
[393877599,1763062633137,151.0,0.00016999,2]
[393877600,1763062633551,151.0,0.00016999,2]
[393877601,1763062633824,151.0,0.00016999,2]
[393877602,1763062634184,151.0,0.00016999,2]
[393877603,1763062634517,151.0,0.00016999,2]
[393877604,1763062634740,151.0,0.00016999,2]
[393877605,1763062635094,151.0,0.00016999,2]
[393877606,1763062635394,151.0,0.00016999,2]
[393877607,1763062635717,151.0,0.00016999,2]
[393877608,1763062636072,151.0,0.00016999,2]
[393877609,1763062636355,151.0,0.00016999,2]
[393877610,1763062636692,151.0,0.00016999,2]
[393877611,1763062637020,151.0,0.00016999,2]
[393877612,1763062637311,151.0,0.00016999,2]
[393877613,1763062637617,151.0,0.00016999,2]
[393877614,1763062637937,151.0,0.00016999,2]
[393877615,1763062638261,151.0,0.00016999,2]
[393877616,1763062638586,151.0,0.00016999,2]
[393877617,1763062638892,120.05040906,0.00016999,2]
[393877618,1763062638923,30.94959094,0.00016999,2]
[393877619,1763062639215,151.0,0.00016999,2]
[393877620,1763062639971,333.08195614,0.00016999,2]
[393877621,1763062640014,151.0,0.00016999,2]
[393877622,1763062640177,151.0,0.00016999,2]
[393877623,1763062640205,151.0,0.00016999,2]
[393877624,1763062640813,151.0,0.00016999,2]
[393877625,1763062679962,8880.97845292,0.00016999,2]
[393877626,1763062679991,839.61401618,0.00016999,2]
[393877627,1763062740573,531.41055671,0.00016999,2]
[393877628,1763062801275,500.0,0.00016999,2]
[393877629,1763062809977,1009.9869981,0.00016999,2]
[393877630,1763062851836,1000.0,0.00016791,2]
[393877631,1763062887897,250.0,0.00016999,2]
[393877632,1763062931186,151.0,0.00016999,2]
[393877633,1763062931787,151.0,0.00016999,2]
[393877634,1763062932466,151.0,0.00016999,2]
[393877635,1763062933123,151.0,0.00016999,2]
[393877636,1763062933985,151.0,0.00016999,2]
[393877637,1763062934457,151.0,0.00016999,2]
[393877638,1763062935095,151.0,0.00016999,2]
[393877639,1763062935725,151.0,0.00016999,2]
[393877640,1763062936341,151.0,0.00016999,2]
[393877641,1763062936988,151.0,0.00016999,2]
[393877642,1763062937579,151.0,0.00016999,2]
[393877643,1763062938187,151.0,0.00016999,2]
[393877644,1763062938683,4056.99842901,0.00016999,2]
[393877645,1763062938707,5769.92322969,0.00016999,2]
[393877646,1763062938786,151.0,0.00016999,2]
[393877647,1763062939010,500.0,0.00016999,2]
[393877648,1763062939252,500.0,0.00016999,2]
[393877649,1763062939399,151.0,0.00016999,2]
[393877650,1763062939488,509.66911117,0.00016999,2]
[393877651,1763062939840,151.0,0.00016999,2]
[393877652,1763062939931,250.0,0.00016734,2]
[393877653,1763062940449,151.0,0.00016999,2]
[393877654,1763062940482,151.0,0.00016999,2]
[393877655,1763062941054,151.0,0.00016999,2]
[393877656,1763062941101,151.0,0.00016999,2]
[393877657,1763062941701,151.0,0.00016999,2]
[393877658,1763062942340,151.0,0.00016999,2]
[393877659,1763062942900,151.0,0.00016999,2]
[393877660,1763062943500,151.0,0.00016999,2]
[393877661,1763062968776,500.0,0.00016999,2]
[393877662,1763062969016,309.41765914,0.00016999,2]
[393877663,1763062969040,190.58234086,0.00016999,2]
[393877664,1763063048361,500.0,0.00016999,2]
[393877665,1763063049067,501.0,0.00016999,2]
[393877666,1763063083574,154.53069937,0.00016914,2]
[393877678,1763063141776,163.72,0.00016688,2]
[393877680,1763063222087,713.43,0.00013699,2]
[393877689,1763063230484,151.0,0.00016999,2]
[393877690,1763063231058,151.0,0.00016999,2]
[393877691,1763063231716,151.0,0.00016999,2]
[393877692,1763063232339,151.0,0.00016999,2]
[393877693,1763063232979,151.0,0.00016999,2]
[393877694,1763063233612,151.0,0.00016999,2]
[393877695,1763063234216,151.0,0.00016999,2]
[393877696,1763063234801,151.0,0.00016999,2]
[393877697,1763063235403,151.0,0.00016999,2]
[393877698,1763063235971,264.73319764,0.00016914,20]
[393877699,1763063236010,151.0,0.00016999,2]
[393877700,1763063236632,151.0,0.00016999,2]
[393877701,1763063237437,151.0,0.00016999,2]
[393877702,1763063237891,151.0,0.00016999,2]
[393877704,1763063238512,151.0,0.00016999,2]
[393877705,1763063239116,151.0,0.00016999,2]
[393877706,1763063239729,151.0,0.00016999,2]
[393877707,1763063240334,151.0,0.00016999,2]
[393877708,1763063240935,151.0,0.00016999,2]
[393877710,1763063242090,151.0,0.00016999,2]
[393877711,1763063242693,151.0,0.00016999,2]
[393877712,1763063246211,4492.01376213,0.00016999,2]
[393877713,1763063246240,6927.92716237,0.00016999,2]
[393877763,1763063424762,999.0,0.00016679,3]
[393877778,1763063431810,-290.90400003,0.00016999,2]
[393877779,1763063431863,-177.57194082,0.00016999,2]
[393877780,1763063431872,-250.0,0.00017014,2]
[393877781,1763063431882,-166.68,0.00017225,2]
[393877782,1763063431891,-122.79261218,0.000173,2]
[393877783,1763063431917,-127.44526546,0.000173,2]
[393877784,1763063431926,-900.0,0.000173,6]
[393877785,1763063431935,-1900.0,0.000174,6]
[393877786,1763063431944,-150.0,0.00017402,2]
[393877787,1763063431954,-250.23787762,0.00017417,2]
[393877788,1763063431964,-2900.0,0.000175,6]
[393877789,1763063431973,-250.23787762,0.00017533,2]
[393877790,1763063431983,-1200.0,0.00017595,2]
[393877791,1763063431992,-1200.0,0.00017596,2]
[393877792,1763063432001,-1724.29795245,0.00017598,2]
[393877793,1763063432011,-1000.0,0.00017599,2]
[393877794,1763063432020,-550.0,0.00017599,2]
[393877795,1763063432031,-300.0,0.00017599,2]
[393877796,1763063432040,-300.0,0.00017599,2]
[393877797,1763063432049,-4039.90120414,0.000176,2]
[393877810,1763063437702,-353.00514749,0.000176,2]
[393877814,1763063437914,-2619.1736062,0.000176,2]
[393877815,1763063437969,-15559.50561196,0.000176,2]
[393877816,1763063437981,-1983.14308496,0.000176,2]
[393877823,1763063439807,-1801.47668218,0.000176,2]
[393877824,1763063439819,-6476.52719994,0.000176,2]
[393877825,1763063439862,-2481.1474939,0.000176,2]
[393877826,1763063439874,-459.4095232,0.000176,2]
[393877827,1763063439885,-4649.55882517,0.000176,2]
[393877828,1763063439895,-180.95059849,0.000176,2]
[393877829,1763063439905,-153.65395795,0.000176,2]
[393877830,1763063439915,-3900.0,0.000176,6]
[393877831,1763063439924,-1724.29795244,0.00017632,2]
[393877832,1763063439934,-3806.53866495,0.00017633,2]
[393877833,1763063439949,-1929.4159866,0.00017633,2]
[393877834,1763063439965,-812.23000005,0.00017633,2]
[393877835,1763063439979,-33874.66372751,0.00017633,2]
[393877836,1763063439989,-1724.29795244,0.00017665,2]
[393877837,1763063439998,-3898.13706374,0.00017667,2]
[393877838,1763063440010,-7231.120413,0.00017667,2]
[393877861,1763063440615,-243.88620894,0.00017667,2]
[393877862,1763063440627,-24319.72269043,0.00017667,2]
[393877880,1763063443188,-575.02044598,0.00017667,2]
[393877881,1763063443297,-251.32323024,0.00017667,2]
[393877900,1763063454902,2073.08283763,0.00016999,2]
[393877901,1763063454926,2553.81866547,0.00016999,2]
[393877902,1763063458209,1852.42,0.00016827,2]
[393877904,1763063482735,188.45,0.00016712,2]
[393877905,1763063485165,3144.07,8.401e-05,2]
[393877906,1763063485273,2261.25133453,8.844e-05,2]
[393877907,1763063485299,882.81866547,8.844e-05,2]
[393877908,1763063486204,3144.07,9.286e-05,2]
[393877909,1763063488315,3144.07,9.728e-05,2]
[393877910,1763063488976,2829.05133453,0.0001017,2]
[393877911,1763063488999,315.01866547,0.0001017,2]
[393877912,1763063489327,3144.07,0.00010612,2]
[393877913,1763063489437,3144.07,0.00011054,2]
[393877914,1763063489538,3144.07,0.00011497,2]
[393877915,1763063489611,252.78133453,0.00011939,2]
[393877916,1763063489633,2891.28866547,0.00011939,2]
[393877917,1763063489831,454.32050171,0.00012381,2]
[393877918,1763063489853,2689.74949829,0.00012381,2]
[393877919,1763063490120,3144.07,0.00012823,2]
[393877920,1763063490321,1274.90183624,0.00013265,2]
[393877921,1763063490344,1869.16816376,0.00013265,2]
[393877922,1763063490888,3144.07,0.00013707,2]
[393877923,1763063491124,3144.07,0.0001415,2]
[393877924,1763063491361,1842.70183624,0.00014592,2]
[393877925,1763063491383,1301.36816376,0.00014592,2]
[393877926,1763063492008,3144.07,0.00015034,2]
[393877927,1763063492235,3144.07,0.00015476,2]
[393877928,1763063492447,2410.50183624,0.00015918,2]
[393877929,1763063492470,733.56816376,0.00015918,2]
[393877930,1763063492648,3144.07,0.0001636,2]
[393877931,1763063492858,3144.07,0.00016802,2]
[393877932,1763063577580,177.62,0.0001348,2]
[393877933,1763063577779,177.62,0.0001685,2]
[393877935,1763063605732,1970.55,0.00016852,2]
[393877944,1763063658098,-250.0,0.00017,2]
[393877945,1763063664963,-732.03295094,0.00017467,2]
[393877946,1763063664986,-153.6539579,0.00017467,2]
[393877947,1763063673606,-300.0,0.00017532,2]
[393877948,1763063673645,-550.0,0.00017532,2]
[393877949,1763063673666,-300.0,0.00017532,2]
[393877950,1763063673687,-243.84679514,0.00017532,2]
[393877951,1763063673706,-409.17744723,0.00017532,2]
[393877952,1763063673726,-196.97575763,0.00017532,2]
[393877953,1763063675238,-303.02424237,0.00017532,2]
[393877954,1763063675261,-500.0,0.00017532,2]
[393877955,1763063675286,-500.0,0.00017532,2]
[393877956,1763063675308,-500.0,0.00017532,2]
[393877957,1763063675328,-196.97575763,0.00017532,2]
[393877958,1763063676638,-303.02424237,0.00017532,2]
[393877959,1763063676661,-500.0,0.00017532,2]
[393877960,1763063676685,-500.0,0.00017532,2]
[393877961,1763063676706,-238.8658706,0.00017532,2]
[393877962,1763063676729,-458.10988703,0.00017532,2]
[393877963,1763063678139,-41.89011297,0.00017532,2]
[393877964,1763063678165,-500.0,0.00017532,2]
[393877965,1763063678188,-500.0,0.00017532,2]
[393877966,1763063678211,-500.0,0.00017532,2]
[393877967,1763063678235,-458.10988703,0.00017532,2]
[393877968,1763063679966,-41.89011297,0.00017532,2]
[393877969,1763063679990,-500.0,0.00017532,2]
[393877970,1763063680011,-538.11392286,0.00017532,2]
[393877971,1763063680033,-500.0,0.00017532,2]
[393877972,1763063680055,-419.99596417,0.00017532,2]
[393877973,1763063681620,-80.00403583,0.00017532,2]
[393877974,1763063681646,-298.98623437,0.00017532,2]
[393877975,1763063681677,-500.0,0.00017532,2]
[393877976,1763063681703,-500.0,0.00017532,2]
[393877977,1763063681728,-500.0,0.00017532,2]
[393877978,1763063681769,-121.0097298,0.00017532,2]
[393877984,1763063828659,500.0,0.00016678,2]
[393878024,1763064108210,1500.0,0.00016986,2]
[393878025,1763064108231,2000.0,0.00016986,2]
[393878028,1763064127993,-198.6637194,0.00016986,2]
[393878029,1763064132548,-173.41745945,0.00016986,2]
[393878031,1763064135443,-240.95229451,0.00016986,2]
[393878032,1763064142594,-177.44061278,0.00016986,2]
[393878034,1763064144878,-151.0,0.00016986,2]
[393878035,1763064146602,-220.44000221,0.00016986,2]
[393878036,1763064150037,-275.7841514,0.00016986,2]
[393878037,1763064152586,-278.61139126,0.00016986,2]
[393878039,1763064155037,-389.29261928,0.00016986,2]
[393878040,1763064157048,200.0,0.00016574,2]
[393878041,1763064158208,-240.10234171,0.00016986,2]
[393878042,1763064160165,-275.21913048,0.00016986,2]
[393878044,1763064163049,-151.0,0.00016986,2]
[393878045,1763064164060,1200.0,0.00016985,2]
[393878046,1763064166527,-242.2207932,0.00016986,2]
[393878047,1763064169770,-210.5688599,0.00016986,2]
[393878049,1763064174306,-170.27333368,0.00016986,2]
[393878050,1763064176018,-237.49216763,0.00016986,2]
[393878051,1763064179255,-528.27782601,0.00016986,2]
[393878052,1763064181286,300.0,0.00016985,2]
[393878054,1763064183849,-338.1722733,0.00016986,2]
[393878055,1763064187147,-221.9370058,0.00016986,2]
[393878056,1763064191167,-151.12427085,0.00016986,2]
[393878059,1763064194362,-167.70362033,0.00016986,2]
[393878060,1763064199823,-190.4422575,0.00016986,2]
[393878063,1763064206930,-194.44334265,0.00016986,2]
[393878065,1763064211335,-197.4840994,0.00016986,2]
[393878067,1763064214468,-169.54347837,0.00016986,2]
[393878068,1763064217299,-165.12203588,0.00016986,2]
[393878069,1763064219120,-366.42155809,0.00016986,2]
[393878071,1763064220892,-160.26215429,0.00016986,2]
[393878073,1763064222682,-261.47249247,0.00016986,2]
[393878074,1763064226406,-308.25801285,0.00016986,2]
[393878075,1763064229023,-254.97292479,0.00016986,2]
[393878078,1763064233812,-435.91391834,0.00016986,2]
[393878079,1763064236115,-268.89354039,0.00016986,2]
[393878080,1763064238802,-164.55270724,0.00016986,2]
[393878081,1763064240914,-266.0104979,0.00016986,2]
[393878082,1763064243184,-269.87787515,0.00016986,2]
[393878083,1763064245221,-340.67876418,0.00016986,2]
[393878084,1763064247395,-170.37608082,0.00016986,2]
[393878085,1763064250679,-151.0,0.00016986,2]
[393878086,1763064252170,-459.50637106,0.00016986,2]
[393878087,1763064254804,-259.90131589,0.00016986,2]
[393878088,1763064260127,-396.27127505,0.00016986,2]
[393878089,1763064262584,-155.39013836,0.00016986,2]
[393878090,1763064264640,-290.74405655,0.00016986,2]
[393878091,1763064266898,-158.5068257,0.00016986,2]
[393878092,1763064270782,-309.563961,0.00016986,2]
[393878093,1763064273348,-831.80045845,0.00016986,2]
[393878094,1763064273419,-10000.01,0.00016986,2]
[393878095,1763064273546,-1036.29598445,0.00016986,2]
[393878097,1763064394132,150.0,0.00016584,2]
[393878098,1763064394371,150.0,0.00016584,120]
[393878099,1763064400350,2681.9362238,0.00016989,2]
[393878100,1763064440714,200.0,0.00016531,2]
[393878101,1763064464779,1000.0,0.00022,30]
[393878196,1763064604727,182.0,0.0002244,120]
[393878211,1763064632280,-195.0,0.0001725,2]
[393878213,1763064632290,-161.67,0.00017275,2]
[393878216,1763064632309,-19.57845453,0.00017275,2]
[393878218,1763064632318,-800.0,0.000173,6]
[393878219,1763064632328,-181.24845452,0.00017339,2]
[393878221,1763064632338,-2096.97900328,0.0001734,2]
[393878223,1763064632347,-2652.9171562,0.00017375,2]
[393878225,1763064632356,-1179.77693147,0.000174,6]
[393878228,1763064632367,-520.22306853,0.000174,6]
[393878230,1763064632376,-17.54469485,0.00017411,2]
[393878232,1763064632391,-1182.45530515,0.00017411,2]
[393878234,1763064632401,-280.121,0.00017412,2]
[393878235,1763064632411,-1200.0,0.00017431,2]
[393878236,1763064632420,-300.0,0.00017431,2]
[393878237,1763064632431,-5725.61447337,0.00017432,2]
[393878238,1763064632442,-9423.4248,0.00017432,2]
[393878239,1763064632452,-1000.0,0.00017433,2]
[393878240,1763064632461,-2500.0,0.00017433,2]
[393878241,1763064632471,-550.0,0.00017438,2]
[393878242,1763064632481,-30035.45672458,0.00017439,2]
[393878243,1763064632490,-184.84160061,0.00017439,2]
[393878244,1763064632500,-210.55530079,0.00017439,2]
[393878245,1763064632509,-4517.0,0.00017457,2]
[393878246,1763064632519,-9999.99,0.00017467,2]
[393878247,1763064632528,-500.0,0.00017473,2]
[393878248,1763064632537,-500.0,0.00017473,2]
[393878249,1763064632546,-500.0,0.00017473,2]
[393878250,1763064632555,-501.05164124,0.00017473,2]
[393878251,1763064632565,-500.0,0.00017473,2]
[393878252,1763064632575,-500.0,0.00017473,2]
[393878253,1763064632584,-501.54339398,0.00017473,2]
[393878254,1763064632595,-500.0,0.00017473,2]
[393878255,1763064632604,-500.0,0.00017473,2]
[393878256,1763064632613,-500.0,0.00017473,2]
[393878257,1763064632625,-500.0,0.00017473,2]
[393878258,1763064632635,-5725.6144733,0.00017486,2]
[393878259,1763064632645,-552.17437,0.0001749,2]
[393878260,1763064632655,-552.17438,0.0001749,2]
[393878261,1763064632664,-552.17437,0.0001749,2]
[393878262,1763064632675,-552.17437,0.0001749,2]
[393878263,1763064632684,-552.17438,0.0001749,2]
[393878264,1763064632697,-552.17437,0.0001749,2]
[393878265,1763064632708,-4332.51167597,0.00017499,2]
[393878266,1763064632722,-25702.94504859,0.00017499,2]
[393878267,1763064632731,-233.87,0.000175,2]
[393878268,1763064632741,-9999.99,0.000175,2]
[393878269,1763064632751,-6874.35,0.000175,2]
[393878270,1763064632760,-150.99,0.000175,2]
[393878271,1763064632770,-573.18553338,0.000175,2]
[393878272,1763064632903,-2676.32446662,0.000175,2]
[393878273,1763064632912,-299.99,0.000175,4]
[393878274,1763064632922,-9999.99,0.000175,2]
[393878275,1763064632931,-3251.58129668,0.000175,2]
[393878276,1763064632945,-3605.18870332,0.000175,2]
[393878277,1763064632954,-9999.99,0.000175,2]
[393878278,1763064632963,-2500.0,0.000175,6]
[393878279,1763064632973,-1562.11839789,0.00017511,2]
[393878280,1763064632982,-15164.56450058,0.00017512,2]
[393878281,1763064632991,-151.0,0.00017523,2]
[393878282,1763064633001,-151.0,0.00017523,2]
[393878283,1763064633010,-151.0,0.00017523,2]
[393878284,1763064633020,-151.0,0.00017523,2]
[393878285,1763064633029,-151.0,0.00017523,2]
[393878286,1763064633039,-151.0,0.00017523,2]
[393878287,1763064633048,-151.0,0.00017523,2]
[393878288,1763064633057,-151.0,0.00017523,2]
[393878289,1763064633066,-151.0,0.00017523,2]
[393878290,1763064633076,-151.0,0.00017523,2]
[393878291,1763064633085,-151.0,0.00017523,2]
[393878292,1763064633095,-151.0,0.00017523,2]
[393878293,1763064633105,-151.0,0.00017523,2]
[393878294,1763064633114,-151.0,0.00017523,2]
[393878295,1763064633125,-151.0,0.00017523,2]
[393878296,1763064633134,-151.0,0.00017523,2]
[393878297,1763064633144,-1603.67349527,0.00017532,2]
[393878298,1763064633153,-508.59,0.00017532,2]
[393878299,1763064633163,-507.40769838,0.00017532,2]
[393878300,1763064633173,-276.89178236,0.00017532,2]
[393878301,1763064633182,-282.01265809,0.00017532,2]
[393878302,1763064633192,-500.0,0.00017532,2]
[393878303,1763064633202,-500.0,0.00017532,2]
[393878304,1763064633211,-500.0,0.00017532,2]
[393878305,1763064633221,-500.0,0.00017532,2]
[393878306,1763064633230,-500.0,0.00017532,2]
[393878307,1763064633239,-500.0,0.00017532,2]
[393878308,1763064633248,-500.0,0.00017532,2]
[393878309,1763064633257,-500.0,0.00017532,2]
[393878310,1763064633267,-500.0,0.00017532,2]
[393878311,1763064633275,-500.0,0.00017532,2]
[393878312,1763064633285,-500.0,0.00017532,2]
[393878313,1763064633294,-500.0,0.00017532,2]
[393878314,1763064633303,-500.0,0.00017532,2]
[393878315,1763064633312,-500.0,0.00017532,2]
[393878316,1763064633321,-500.0,0.00017532,2]
[393878317,1763064633330,-500.0,0.00017532,2]
[393878318,1763064633339,-500.0,0.00017532,2]
[393878319,1763064633348,-500.0,0.00017532,2]
[393878320,1763064633357,-500.0,0.00017532,2]
[393878321,1763064633366,-500.0,0.00017532,2]
[393878322,1763064633375,-500.0,0.00017532,2]
[393878323,1763064633384,-500.0,0.00017532,2]
[393878324,1763064633393,-500.0,0.00017532,2]
[393878325,1763064633402,-500.0,0.00017532,2]
[393878326,1763064633410,-500.0,0.00017532,2]
[393878327,1763064633419,-500.0,0.00017532,2]
[393878328,1763064633428,-500.0,0.00017532,2]
[393878329,1763064633437,-500.0,0.00017532,2]
[393878330,1763064633446,-520.98986662,0.00017532,2]
[393878331,1763064633456,-500.0,0.00017532,2]
[393878332,1763064633465,-500.0,0.00017532,2]
[393878333,1763064633474,-500.0,0.00017532,2]
[393878334,1763064633485,-500.0,0.00017532,2]
[393878335,1763064633494,-500.0,0.00017532,2]
[393878336,1763064633504,-500.0,0.00017532,2]
[393878337,1763064633513,-500.0,0.00017532,2]
[393878338,1763064633523,-500.0,0.00017532,2]
[393878339,1763064633532,-500.0,0.00017532,2]
[393878340,1763064633545,-500.0,0.00017532,2]
[393878341,1763064633565,-500.0,0.00017532,2]
[393878342,1763064633584,-500.0,0.00017532,2]
[393878343,1763064633603,-200.0,0.00017532,2]
[393878344,1763064633621,-500.0,0.00017532,2]
[393878345,1763064633641,-500.0,0.00017532,2]
[393878346,1763064633659,-500.0,0.00017532,2]
[393878347,1763064633680,-497.60293669,0.00017532,2]
[393878348,1763064633701,-328.44061278,0.00017532,2]
[393878349,1763064633720,-275.21913048,0.00017532,2]
[393878350,1763064633741,-231.10645961,0.00017532,2]
[393878351,1763064633758,-500.0,0.00017532,2]
[393878352,1763064633773,-500.0,0.00017532,2]
[393878353,1763064633793,-500.0,0.00017532,2]
[393878354,1763064633807,-203.09059106,0.00017532,2]
[393878355,1763064633824,-176.0774614,0.00017532,2]
[393878356,1763064633838,-500.0,0.00017532,2]
[393878357,1763064633858,-369.09226793,0.00017532,2]
[393878358,1763064633878,-216.99337498,0.00017532,2]
[393878359,1763064633892,-318.82789118,0.00017532,2]
[393878360,1763064633907,-500.0,0.00017532,2]
[393878361,1763064633922,-500.0,0.00017532,2]
[393878362,1763064633937,-283.45677189,0.00017532,2]
[393878363,1763064633951,-262.48081887,0.00017532,2]
[393878364,1763064633986,-237.51918113,0.00017532,2]
[393878365,1763064634001,-601.942233,0.00017532,2]
[393878366,1763064634017,-587.83081013,0.00017532,2]
[393878367,1763064634032,-638.36357189,0.00017532,2]
[393878368,1763064634048,-238.37136729,0.00017532,2]
[393878369,1763064634064,-500.0,0.00017532,2]
[393878370,1763064634080,-219.40768695,0.00017532,2]
[393878371,1763064634098,-500.0,0.00017532,2]
[393878372,1763064634117,-500.0,0.00017532,2]
[393878373,1763064634135,-567.16298395,0.00017532,2]
[393878374,1763064634152,-382.86787553,0.00017532,2]
[393878375,1763064634170,-500.0,0.00017532,2]
[393878376,1763064634188,-500.0,0.00017532,2]
[393878377,1763064634205,-500.0,0.00017532,2]
[393878378,1763064634220,-500.0,0.00017532,2]
[393878379,1763064634237,-630.45669627,0.00017532,2]
[393878380,1763064634254,-150.0,0.00017532,2]
[393878381,1763064634269,-132802.35681124,0.00017533,2]
[393878382,1763064634287,-493.33056671,0.00017533,2]
[393878383,1763064634311,-999.51833433,0.00017533,2]
[393878395,1763064637929,-253.70384919,0.00017532,2]
[393878396,1763064637939,-39484.9831576,0.00017533,2]
[393878397,1763064638100,-691.20796414,0.00017533,2]
[393878398,1763064638165,-3102.53459742,0.00017533,2]
[393878409,1763064640024,-259.02652311,0.00017533,2]
[393878410,1763064640037,-1591.59000001,0.00017533,2]
[393878411,1763064640317,-3182.27909999,0.00017533,2]
[393878412,1763064640329,-11075.13159059,0.00017533,2]
[393878413,1763064640341,-102753.13215376,0.00017533,2]
[393878414,1763064640352,-123564.9092011,0.00017533,2]
[393878415,1763064640361,-169.54689343,0.00017539,2]
[393878416,1763064640371,-1905.24542032,0.00017539,2]
[393878417,1763064640380,-5725.6144733,0.00017541,2]
[393878418,1763064640391,-209.39696604,0.00017553,2]
[393878419,1763064640401,-30035.45672456,0.00017559,2]
[393878420,1763064640412,-1196.88774181,0.00017563,2]
[393878421,1763064640422,-505.17272992,0.00017573,2]
[393878422,1763064640431,-500.0,0.00017573,2]
[393878423,1763064640442,-500.0,0.00017573,2]
[393878424,1763064640451,-164.59515151,0.00017573,2]
[393878425,1763064640461,-500.0,0.00017573,2]
[393878426,1763064640470,-500.0,0.00017573,2]
[393878427,1763064640479,-500.0,0.00017573,2]
[393878429,1763064640489,-500.0,0.00017573,2]
[393878431,1763064640498,-500.0,0.00017573,2]
[393878433,1763064640507,-500.0,0.00017573,2]
[393878435,1763064640517,-500.0,0.00017573,2]
[393878437,1763064640527,-327.20206162,0.00017573,2]
[393878439,1763064640537,-500.0,0.00017573,2]
[393878441,1763064640546,-500.0,0.00017573,2]
[393878443,1763064640555,-500.0,0.00017573,2]
[393878445,1763064640564,-500.0,0.00017573,2]
[393878447,1763064640573,-218.92698691,0.00017573,2]
[393878449,1763064640583,-500.0,0.00017573,2]
[393878450,1763064640592,-502.82717258,0.00017573,2]
[393878451,1763064640602,-502.34464455,0.00017573,2]
[393878452,1763064640611,-500.0,0.00017573,2]
[393878453,1763064640622,-500.0,0.00017573,2]
[393878454,1763064640636,-500.0,0.00017573,2]